Workbook

Sheet Навигация
A1: Расчет среднемесячного дохода заемщика
A5: Шаг 0. Выберите тип калькулятора: | G5: Стандартный (Для физических лиц, не являющихся индивидуальными предпринимателями или самозанятыми)
A6: (Необходимо нажать на требуемый вид калькулятора справа) | G6: или
G7: Для ИП или Самозанятых (Для физических лиц, являющихся индивидуальными предпринимателями или самозанятыми)

Sheet Стандартный
A1: Расчет среднемесячного дохода заемщика, не являющегося самозанятым или индивидуальным предпринимателем. (Расчет является предварительным и служит информационным целям для оценки потенциального изменения дохода. Финальное решение будет приниматься на основании документов после проведения Банком расчетов)
A6: Шаг 1. Введите свой доход за 2019 г. (до налогов, мы сами их вычтем):
A7: Если у Вас в какой-либо месяц не было дохода, то необходимо заполнить данные по доходу за данный месяц числом 0.
A8: Если у Вас 3 и более источников дохода, то необходимо заполнить данные по дополнительному доходу суммой всех дополнительных доходов за данный месяц.
A10: Данные о первомом источние дохода заемщика за 2019 г. заполняются на основании справки 2НДФЛ и включают в себя суммы дохода по кодам 1240, 2000, 2001, 2002, 2003, 2010, 2012, 2013, 2014, 2300, 2520, 2530, 2710, 2760, 2762.
B13: Месяц | D13: Сумма дохода (1) | I13: Сумма дохода (2) | N13: Итого доход по месяцам
D14: Первый источник дохода по справке 2НДФЛ. Указывайте свой доход до налогов | I14: Второй источник дохода. Например, пенсия или инные социальные выплаты
B18: 1 | D18: 45000 | I18: 10000 | N18: =D18*87%+I18 -> 49150
B19: 2 | D19: 45000 | I19: 10000 | N19: =D19*87%+I19 -> 49150
B20: 3 | D20: 45000 | I20: 10000 | N20: 49150
B21: 4 | D21: 45000 | I21: 10000 | N21: 49150
B22: 5 | D22: 45000 | I22: 10000 | N22: 49150
B23: 6 | D23: 45000 | I23: 10000 | N23: 49150
B24: 7 | D24: 45000 | I24: 10000 | N24: 49150
B25: 8 | D25: 45000 | I25: 10000 | N25: 49150
B26: 9 | D26: 45000 | I26: 10000 | N26: 49150
B27: 10 | D27: 45000 | I27: 10000 | N27: 49150
B28: 11 | D28: 45000 | I28: 10000 | N28: 49150
B29: 12 | D29: 45000 | I29: 10000 | N29: 49150
A32: Шаг 2. Введите свой доход за месяц, предшедствующий месяцу обращения (до налогов, мы сами их вычтем):
A33: Например, если Вы обращаетесь 31 апреля, то необходимо указать свой доход за Март.
A34: Если у вас больничный лист со сроком месяц и более, то укажите ожидаемый доход за месяц.
B36: Месяц | D36: Сумма дохода (1) | I36: Сумма дохода (2) | N36: Итого доход
D37: Первый источник дохода по справке 2НДФЛ. Указывайте свой доход до налогов | I37: Второй источник дохода. Например, пенсия или инные социальные выплаты
D41: 25000 | I41: 10000 | N41: =D41*87%+I41 -> 31750
A44: Шаг 3. Результаты расчета калькулятора для указания в документе "Требование": | V44: Данные для расчета
V45: Количество месяцев в доходом >0 | AA45: =COUNTIF(N18:R29,">0") -> 12
B46: Среднямесячный доход за 2019г. после налогов: | J46: =IFERROR(IF(AA45>=5,AA88,(AA46/AA45)),"") -> 49150 | V46: Сумма всех доходов | AA46: =SUM(N18:R29) -> 589800
B48: Доход за месяц, предшествующий месяцу обращения: | J48: =N41 -> 31750 | V48: 1ое наибольшее | AA48: =LARGE(N18:R29,1) -> 49150
V49: 2ое наибольшее | AA49: =LARGE(N18:R29,2) -> 49150
B50: Разница, %: | J50: =IFERROR(1-J48/J46,"") -> 0.3540183113
V51: 1ое наименьшее | AA51: =SMALL(IF(N18:R29>0,N18:R29,""),1) -> 49150
B52: Результат: | J52: =IF(J50="","",IF(J50>=30%,"Подтверждено снижение дохода на 30% и более.","Не подтверждено снижение дохода на 30% и более.")) -> Подтверждено снижение дохода на 30% и более. | V52: 2ое наименьшее | AA52: =SMALL(IF(N18:R29>0,N18:R29,""),2) -> 49150
V54: Сумма доходов без наибольших и наименьших | AA54: =AA46-AA48-AA49-AA51-AA52 -> 393200
A58: Справочная информация:
A59: 1. Расчет среднемесячного дохода заемщика осуществляется согласно методике Правительства РФ.
A61: 2. Как заполнять данные в калькуляторе на основании справки 2НДФЛ:
B63: Как видите Вы в справке 2НДФЛ:
C65: Месяц | E65: Код дохода | G65: Сумма дохода | K65: Код вычета | M65: Сумма вычета
C67: 1 | E67: 2000 | G67: 40000
C68: 2 | E68: 2000 | G68: 30000
C69: 2 | E69: 2300 | G69: 5000
C70: 3 | E70: 2000 | G70: 40000
B72: Как эти данные нужно внести в калькулятор (Шаг 1):
C74: Месяц | E74: Сумма дохода (1) | J74: Сумма дохода (2) | O74: Итого
E75: (Первый источника дохода по справке 2НДФЛ. Указывайте свой доход до налогов) | J75: (Второй источник дохода. Например, пенсия или инные социальные выплаты)
C79: 1 | E79: 40000 | J79: 0 | O79: =E79*87%+J79 -> 34800
C80: 2 | E80: 35000 | J80: 0 | O80: =E80*87%+J80 -> 30450
C81: 3 | E81: 40000 | J81: 0 | O81: 34800
C83: За месяц 1 есть только одна запись о доходе. В поле "Сумма дохода (1)" для месяца 1 необходимо внести сумму дохода из этой записи.
C85: За месяц 2 есть две записи о доходе, т.к был больничный в этом месяце. В поле "Сумма дохода(1) для месяца 2 необходимо внести сумму дохода из этих двух записей.
C87: За месяц 3 опять есть только одна запись о доходе. В поле "Сумма дохода(1)" для месяца 3 необходимо внести сумму дохода из этой записи.
V88: Средний доход | AA88: =AA54/(AA45-4) -> 49150

Sheet Для ИП и Самоз.
A1: Расчет среднемесячного дохода заемщика, являющегося самозанятым или индивидуальным предпринимателем. (Расчет является предварительным и служит информационным целям для оценки потенциального изменения дохода. Финальное решение будет приниматься на основании документов после проведения Банком расчетов)
A5: Шаг 1. Выберите способ подтверждения дохода
A6: Необходимо выбрать способ подтверждения из доступного списка. | V6: =IF(E8=X6,1,IF(E8=X7,2,IF(E8=X8,3,0))) -> 1 | X6: Справка об оборотах по расчетным счетам
X7: Справка о доходах из мобильного приложения "Мой налог"
B8: Способ подтверждения дохода: | E8: Справка об оборотах по расчетным счетам | X8: Справка 3-НДФЛ
A10: Шаг 2. Введите обороты по расчетным счетам за 2019 г.:
A11: Данные необходимо заполнить на основании справки об оборотах по расчетному счету.
B13: Введите количество расчетных счетов (макс. 5): | F13: 2
X15: 1
C16: Расчетный счет №1: | X16: 2
C17: Месяц | D17: Оборот по кредиту | X17: 3
C18: 1 | D18: 9240922 | X18: 4
C19: 2 | D19: 10347720 | X19: 5
C20: 3 | D20: 4572278.57
C21: 4 | D21: 3974200
C22: 5 | D22: 2139330
C23: 6 | D23: 2793287
C24: 7 | D24: 5203190
C25: 8 | D25: 5760773.15
C26: 9 | D26: 9981250
C27: 10 | D27: 3755680
C28: 11 | D28: 5441902
C29: 12 | D29: 2096599
C32: Расчетный счет №2:
C33: Месяц | D33: Оборот по кредиту
C34: 1 | D34: 1996646.68
C35: 2 | D35: 2669861.16
C36: 3 | D36: 3077617.51
C37: 4 | D37: 2490111.7
C38: 5 | D38: 2554388.62
C39: 6 | D39: 4025037.68
C40: 7 | D40: 3113663.89
C41: 8 | D41: 3369777.95
C42: 9 | D42: 379289.99
C43: 10 | D43: 4216754.14
C44: 11 | D44: 3592450.37
C45: 12 | D45: 3910534.62
C48: Расчетный счет №3:
C49: Месяц | D49: Оборот по кредиту
C50: 1
C51: 2
C52: 3
C53: 4
C54: 5
C55: 6
C56: 7
C57: 8
C58: 9
C59: 10
C60: 11
C61: 12
C64: Расчетный счет №4:
C65: Месяц | D65: Оборот по кредиту
C66: 1
C67: 2
C68: 3
C69: 4
C70: 5
C71: 6
C72: 7
C73: 8
C74: 9
C75: 10
C76: 11
C77: 12
C80: Расчетный счет №5:
C81: Месяц | D81: Оборот по кредиту
C82: 1
C83: 2
C84: 3
C85: 4
C86: 5
C87: 6
C88: 7
C89: 8
C90: 9
C91: 10
C92: 11
C93: 12
A96: Шаг 3. Введите обороты по расчетным счетам за месяц предшедствующий месяцу обращения.:
A97: Например, если вы обращаетесь 30 апреля, то необходимо указать данные за Март.
B99: Введите количество расчетных счетов (макс. 5): | F99: 2
B101: № Расчетного счета | D101: Оборот по кредиту
B102: 1 | D102: 3912424
B103: 2 | D103: 1923456
B104: 3
B105: 4
B106: 5
A109: Шаг 2. Введите данные по доходам за 2019 г.:
A110: Данные необходимо заполнить на основании справки о доходах из приложения "Мой налог"
C112: Месяц | D112: Сумма дохода
C113: 1 | D113: 100000
C114: 2 | D114: 100000
C115: 3 | D115: 100000
C116: 4 | D116: 100000
C117: 5 | D117: 100000
C118: 6 | D118: 100000
C119: 7 | D119: 100000
C120: 8 | D120: 100000
C121: 9 | D121: 100000
C122: 10 | D122: 100000
C123: 11 | D123: 100000
C124: 12 | D124: 100000
A127: Шаг 3. Введите данные по доходам за месяц предшедствующий месяцу обращения.:
A128: Например, если вы обращаетесь 30 апреля, то необходимо указать данные за Март.
A129: Если у вас больничный лист со сроком месяц и более. То укажите ожидаемый доход за месяц
C131: Месяц | D131: Сумма дохода
D132: 65000
A135: Шаг 2. Введите данные по доходам за 2019 г.:
A136: Данные необходимо заполнить на основании справки 3-НДФЛ за 2019 г. (Раздел 2.1.1):
B138: Сумма полученных доходов за 2019 г.: | E138: 5333060
B141: Сумма исчисленного налога за 2019 г.: | E141: 319984
A143: Шаг 3. Введите данные по доходам за 2020 г.:
A144: Данные необходимо заполнить на основании справки 3-НДФЛ за первый квартал 2020 г. или первое полугодие 2020 г. (Раздел 2.1.1):
B146: Налоговый период: | E146: Первый квартал | U146: =IF(E146=V146,1,IF(E146=V147,2,0)) -> 1 | V146: Первый квартал
V147: Полугодие
B148: Сумма полученных доходов за период: | E148: 900000
B151: Сумма исчисленного налога за период: | E151: 100000
A155: Шаг 4. Результаты расчета калькулятора для указания в документе "Требование":
V156: Вариант 1 | X156: Вариант 2 | Z156: Вариант 3
B157: =IF(V6=1,"Средний оборот по кредиту за 2019 г.:",IF(V6=2,"Средний доход за 2019 г.:","Средний доход за 2019 г.:")) -> Средний оборот по кредиту за 2019 г.: | J157: =IF(V6=1,W157/12,IF(V6=2,Y157/12,IF(V6=3,AA157/12,0))) -> 8391938.836 | V157: Сумма оборотов по всем счетам | W157: =SUM(D18:E29,D34:E45,D50:E61,D66:E77,D82:E93) -> 100703266 | X157: Сумма доходов за 12 мес. | Y157: =SUM(D113:E124) -> 1200000 | Z157: Сумма доходов с учетом налогов за 2019 г.: | AA157: =E138-E141 -> 5013076
V158: Сумма оборотов по пред месяцу | W158: =SUM(D102:E106) -> 5835880 | X158: Доход за последний месяц | Y158: =D132 -> 65000 | Z158: Сумма дохода за посл. Налоговый период: | AA158: =E148-E151 -> 800000
B159: =IF(V6=1,"Оборот за месяц, предшествующий месяцу обращения:",IF(V6=2,"Доход за месяц, предшествующий месяцу обращения:","Средний доход за 2020 г.:")) -> Оборот за месяц, предшествующий месяцу обращения: | J159: =IF(V6=1,W158,IF(V6=2,Y158,IF(V6=3,AA160,0))) -> 5835880
Z160: Средний доход в 2020 в месяц | AA160: =IF(U146=1,AA158/3,AA158/6) -> 266666.6667
B161: Разница, %: | J161: =IFERROR((1-J159/J157),"") -> 0.3045850173
B163: Результат: | J163: =IF(J161="","",IF(J161>=30%,"Подтверждено снижение дохода на 30% и более.","Не подтверждено снижение дохода на 30% и более.")) -> Подтверждено снижение дохода на 30% и более.
A169: Справочная информация:
A170: 1. Расчет среднемесячного дохода заемщика осуществляется согласно методике Правительства РФ.

Sheet Методика
